Cogmind - Beta 9.2 @@@ ROGUE MODE // 2019.12.20 @ 20:54:31 Player: Fleshy Vegetable Bird Result: Destroyed by S-10 Pest with Light Assault Rifle Performance ------------- Evolutions (1) 500 Regions Visited (6) 1200 Robots Destroyed (79) 395 Value Destroyed (1804) 1804 Prototype IDs (2) 40 Alien Tech Used (0) 0 Bonus (-315) -315 TOTAL SCORE: 3624 Bonus ------- High Alert Combat Kills 33 Follower Combat Kills 35 Friendly Fire -383 Cogmind --------- Core Integrity 0/400 Matter 137/300 Energy 125/125 System Corruption 0% Temperature Cool (0) Movement Hovering (236) Ox3 Location -8/Mines Parts ------- > --- POWER (1) -------- Light Ion Engine > --- PROPULSION (3) --- Improved Hover Unit Improved Hover Unit > --- UTILITY (3) ------ Large Storage Unit High-capacity Storage Unit > --- WEAPON (2) ------- Katana > --- INVENTORY (18) --- Improved Ion Engine Improved Ion Engine Light Angular Momentum Engine Fission Core Fission Core Improved Hover Unit Large Storage Unit Melee Analysis Suite Plasma Cutter Peak State ------------ > --- POWER ------------ Light Ion Engine > --- PROPULSION ------- Carbon-fiber Leg > --- UTILITY ---------- Improved Heat Sink Large Storage Unit High-capacity Storage Unit > --- WEAPON ----------- Light Assault Rifle Gauss Rifle > --- INVENTORY -------- Improved Ion Engine Improved Ion Engine Light Angular Momentum Engine Fission Core Fission Core Improved Hover Unit Improved Hover Unit Improved Hover Unit Improved Hover Unit Large Storage Unit Melee Analysis Suite Plasma Cutter Katana [Rating: 17] Favorites ----------- Power Ion Engine Engine Ion Engine Propulsion Compact Wheel Leg Carbon-fiber Leg Wheel Compact Wheel Hover Unit Improved Hover Unit Utility High-capacity Storage Unit Device Improved Heat Sink Storage High-capacity Storage Unit Processor Terrain Scan Processor Protection Light Armor Plating Weapon Assault Rifle Energy Gun EM Pulse Gun Ballistic Gun Assault Rifle Launcher Grenade Launcher Slashing Weapon Katana Build | -11 -10 -10 -9 -9 -9 -8 ------- Run | Scr Mat Min Mat Min Exi Min Slots Evolved 2 | . . . 2 . . . Power . | . . . . . . . Propulsion 1 | . . . 1 . . . Utility 1 | . . . 1 . . . Weapon . | . . . . . . . Parts Attached 54 | 7 11 2 13 7 . 14 Power 9 | 1 2 . 1 3 . 2 Engine 9 | 1 2 . 1 3 . 2 Core . | . . . . . . . Reactor . | . . . . . . . Propulsion 14 | 2 3 . 3 2 . 4 Treads . | . . . . . . . Leg 1 | . . . . . . 1 Wheel 10 | 2 3 . 3 2 . . Hover 3 | . . . . . . 3 Flight . | . . . . . . . Utility 10 | 2 3 . 3 1 . 1 Device 1 | . . . . . . 1 Storage 5 | 2 3 . . . . . Processor 1 | . . . 1 . . . Hackware . | . . . . . . . Protection 3 | . . . 2 1 . . Artifact . | . . . . . . . Weapon 21 | 2 3 2 6 1 . 7 Energy Gun 7 | 1 1 1 3 . . 1 Energy Cannon . | . . . . . . . Ballistic Gun 8 | 1 . 1 1 1 . 4 Ballistic Cannon . | . . . . . . . Launcher 5 | . 2 . 2 . . 1 Special Weapon . | . . . . . . . Impact Weapon . | . . . . . . . Slashing Weapon 1 | . . . . . . 1 Piercing Weapon . | . . . . . . . Special Melee Weapon . | . . . . . . . Unidentified Prototypes . | . . . . . . . Parts Lost 37 | . 8 1 7 5 . 16 Power 5 | . 1 . 1 1 . 2 Propulsion 12 | . 3 . 3 2 . 4 Utility 4 | . . . 1 1 . 2 Weapon 16 | . 4 1 2 1 . 8 Highest Loss Streak 7 | . 4 1 2 4 . 7 Average Slot Usage (%) 89 | . 91 99 84 95 88 53 Engine 11 | . 13 14 11 10 11 3 Wheel 25 | . 25 28 27 30 22 8 Storage 25 | . 28 28 22 22 22 22 Protection 2 | . . . 3 10 11 . Energy Gun 7 | . . 13 10 13 11 . Ballistic Gun 8 | . 12 1 6 8 11 8 Launcher 6 | . 9 12 3 . . 3 Naked Turns . | . . . . . . . Heaviest Build 60 | 15 60 57 60 60 59 59 Greatest Support 42 | 20 32 32 42 36 26 26 Greatest Overweight (x) 5 | . 4 1 2 2 2 5 Average Overweight (x) 1 | . 1 1 1 1 2 3 Largest Inventory Capacity 18 | 8 18 18 18 18 18 18 Average Capacity 17 | 6 16 18 18 18 18 18 Most Carried 18 | 4 12 12 14 15 18 18 Average Carried 10 | 1 8 9 12 12 17 15 Final Capacity 18 | 8 18 18 18 18 18 18 Final Carried 18 | 3 10 12 12 15 18 9 Class Distribution -------------------- 96% | Mutant 3% | Scavenger-Mutant Dominant Class ---------------- Mutant | -10/Materials Mutant | -10/Mines Mutant | -9/Materials Mutant | -9/Mines Mutant | -9/Exiles Mutant | -8/Mines Resources | -11 -10 -10 -9 -9 -9 -8 ----------- Run | Scr Mat Min Mat Min Exi Min Matter Collected 1299 | 257 282 110 405 68 22 155 Remotely . | . . . . . . . Salvage Created 2014 | 83 605 58 803 179 . 286 Parts 153 | 6 33 10 59 13 . 32 Haulers Intercepted 3 | . 1 . 2 . . . Recyclers Shooed 1 | . 1 . . . . . Parts Field Recycled . | . . . . . . . Retrieved Matter . | . . . . . . . Parts Self-Destructed . | . . . . . . . Prevented . | . . . . . . . Kills | -11 -10 -10 -9 -9 -9 -8 ------- Run | Scr Mat Min Mat Min Exi Min Combat Hostiles Destroyed 55 | . 11 6 18 4 . 16 Melee 1 | . . . . . . 1 Guns 27 | . 4 1 11 4 . 7 AOE 27 | . 7 5 7 . . 8 Classes Destroyed 12 | 2 6 1 2 . . 1 Builder 6 | . 1 . 4 . . 1 Tunneler 3 | 2 . 1 . . . . Hauler 3 | . 1 . 2 . . . Recycler 3 | 1 2 . . . . . Operator 4 | . 2 . 2 . . . Watcher 3 | . 2 . 1 . . . Swarmer 26 | . 3 6 4 . . 13 Grunt 22 | . 8 . 8 3 . 3 Duelist 2 | . . . 1 1 . . Sentry 5 | . . . 5 . . . Hunter 1 | . . . . . . 1 Zionite 1 | . . 1 . . . . Best Kill Streak 9 | 3 3 3 9 3 . 7 Combat Bots Only 7 | . 2 3 4 3 . 7 Max Kills in Single Turn 5 | 1 2 3 2 2 . 5 Gunslinging 1 | . . . . 1 . . Exploded 5 | . 2 3 2 . . 5 Melee 1 | . . . . . . 1 Uniques/NPCs Destroyed . | . . . . . . . Combat | -11 -10 -10 -9 -9 -9 -8 -------- Run | Scr Mat Min Mat Min Exi Min Damage Taken 3212 | . 684 171 531 447 . 1379 Core 538 | . 91 43 64 52 . 288 Absorbed by Shields . | . . . . . . . Core Remaining (%) 73 | 100 . 46 . . . . Volleys Fired 233 | 8 75 19 68 23 . 40 Largest 2 | 2 2 1 2 2 . 2 Hottest 90 | 60 70 40 90 90 . 80 Shots Fired 341 | 16 91 19 116 45 . 54 Gun 303 | 16 78 16 108 45 . 40 Cannon . | . . . . . . . Launcher 38 | . 13 3 8 . . 14 Special . | . . . . . . . Kinetic 183 | 8 67 14 46 13 . 35 Thermal 22 | . 5 2 2 9 . 4 Explosive 38 | . 13 3 8 . . 14 Electromagnetic 98 | 8 6 . 60 23 . 1 Robot Hit Streak 13 | 1 10 1 13 6 . 7 Robot Miss Streak 8 | 2 4 8 5 2 . 4 Penetration Max 1 | . . . . . . 1 Secondary Targets 2 | . 1 . . 1 . . Max Gunslinging Chain 1 | . 1 . . 1 . . Shots Hit Robots 191 | 6 51 5 67 29 . 33 Core Hits 123 | 4 33 9 43 11 . 23 Critical Hits 2 | . 1 . . . . 1 Critical Kills . | . . . . . . . Critical Parts Destroyed 2 | . 1 . . . . 1 Melee Attacks 2 | . . . . . . 2 Impact . | . . . . . . . Slashing 2 | . . . . . . 2 Piercing . | . . . . . . . Sneak Attacks . | . . . . . . . Combat Hostiles . | . . . . . . . Follow-up Attacks . | . . . . . . . Damage Inflicted 4758 | 88 1258 404 1574 314 . 1120 Guns 2392 | 88 632 63 871 314 . 424 Cannons . | . . . . . . . Explosions 2291 | . 626 327 703 . . 635 Melee 61 | . . . . . . 61 Ramming 14 | . . 14 . . . . Kinetic 1382 | 48 553 51 266 87 . 377 Thermal 289 | . 13 100 12 63 . 101 Explosive 2137 | . 626 239 703 . . 569 Electromagnetic 875 | 40 66 . 593 164 . 12 Impact . | . . . . . . . Slashing 61 | . . . . . . 61 Piercing . | . . . . . . . Highest Corruption 2 | . 2 2 . . . . Average Corruption 2 | . 2 2 . . . . Corruption Purged . | . . . . . . . Effects 18 | . 10 8 . . . . Message Errors 5 | . 3 2 . . . . Heat Flow Errors 2 | . 1 1 . . . . Energy Discharges 4 | . 1 3 . . . . Data Loss (minor) 7 | . 5 2 . . . . Overload Shots . | . . . . . . . Overflow Damage 103 | . 29 16 17 . . 41 Projectiles . | . . . . . . . Explosions 103 | . 29 16 17 . . 41 Melee . | . . . . . . . Knockbacks . | . . . . . . . Impact . | . . . . . . . Kinetic . | . . . . . . . Secondary . | . . . . . . . Self-Inflicted Damage 608 | . 276 7 172 . . 153 Shots 18 | . 8 . 5 . . 5 Rammed 1 | . . 1 . . . . Targets Rammed 1 | . . 1 . . . . Kicked . | . . . . . . . Crushed . | . . . . . . . Highest Temperature 255 | . 219 255 60 202 . 21 Average Temperature 65 | . 85 135 19 93 . 17 Received Heat Transfer 432 | . 228 . 141 63 . . Siege Activations . | . . . . . . . Robots Corrupted . | . . . . . . . Combat Hostiles . | . . . . . . . Parts Fried 1 | . . . 1 . . . Impact Corruptions . | . . . . . . . Robots Melted . | . . . . . . . Combat Hostiles . | . . . . . . . Parts Melted . | . . . . . . . Heat Transferred 559 | . 37 175 37 185 . 125 Parts Sabotaged . | . . . . . . . Parts Stolen . | . . . . . . . Parts Stripped . | . . . . . . . Power Chain Reactions 1 | . . . . . . 1 Missiles Intercepted . | . . . . . . . Alert | -11 -10 -10 -9 -9 -9 -8 ------- Run | Scr Mat Min Mat Min Exi Min Peak Influence 518 | 15 160 243 518 254 . 388 Average Influence 134 | 4 82 73 259 163 . 204 Maximum Alert Level 2 | . . 1 2 1 . 1 Low Security (%) 74 | 100 100 93 40 41 . 57 Level 1 20 | . . 6 34 58 . 42 Level 2 4 | . . . 24 . . . Level 3 . | . . . . . . . Level 4 . | . . . . . . . Level 5 . | . . . . . . . High Security . | . . . . . . . Max Security . | . . . . . . . Squads Dispatched 4 | . 1 . 2 . . 1 Investigation . | . . . . . . . Extermination . | . . . . . . . Reinforcement 4 | . 1 . 2 . . 1 Assault . | . . . . . . . Garrison . | . . . . . . . Intercept . | . . . . . . . Construction Impeded 1 | . . . . . . 1 Haulers Reinforced . | . . . . . . . Stealth | -11 -10 -10 -9 -9 -9 -8 --------- Run | Scr Mat Min Mat Min Exi Min Distress Signals 3 | . 1 . 2 . . . Communications Jammed . | . . . . . . . Distress Signals . | . . . . . . . Times Spotted 97 | . 28 6 34 9 . 20 Peak Tracking Total 8 | . 4 3 6 3 . 8 Tactical Retreats 5 | . 1 . 1 1 . 2 Traps | -11 -10 -10 -9 -9 -9 -8 ------- Run | Scr Mat Min Mat Min Exi Min Traps Triggered 1 | . 1 . . . . . Indirectly . | . . . . . . . Trap Hack Attempts . | . . . . . . . Triggered . | . . . . . . . Disarmed . | . . . . . . . Reprogrammed . | . . . . . . . Reused . | . . . . . . . Traps Extracted . | . . . . . . . Installed . | . . . . . . . Triggered . | . . . . . . . Exploded 1 | . . . . . . 1 Machines | -11 -10 -10 -9 -9 -9 -8 ---------- Run | Scr Mat Min Mat Min Exi Min Machines Disabled 22 | . 4 8 7 2 . 1 Max in Single Turn 8 | . 2 8 3 . . 1 Machines Sabotaged . | . . . . . . . Garrisons Compromised . | . . . . . . . Overloaded Fab Kills . | . . . . . . . Fab Network Shutdowns . | . . . . . . . Hacking | -11 -10 -10 -9 -9 -9 -8 --------- Run | Scr Mat Min Mat Min Exi Min Machines Accessed 10 | . 3 . 5 . 1 1 Terminals 8 | . 3 . 4 . . 1 Fabricators . | . . . . . . . Repair Stations 1 | . . . 1 . . . Recycling Units . | . . . . . . . Scanalyzers . | . . . . . . . Garrison Access . | . . . . . . . Total Hacks 54 | . 13 . 16 . 23 2 Successful 39 | . 8 . 7 . 23 1 Failed 15 | . 5 . 9 . . 1 Catastrophic . | . . . . . . . Database Lockouts . | . . . . . . . Manual 25 | . 12 . 11 . . 2 Terminals 28 | . 13 . 13 . . 2 Fabricators . | . . . . . . . Repair Stations 3 | . . . 3 . . . Recycling Units . | . . . . . . . Scanalyzers . | . . . . . . . Garrison Access . | . . . . . . . Terminal Hacks 25 | . 2 . . . 23 . Record 23 | . . . . . 23 . Prototype ID Bank 1 | . 1 . . . . . Terminal Index 1 | . 1 . . . . . Fabricator Hacks . | . . . . . . . Repair Station Hacks 1 | . . . 1 . . . Scan Component 1 | . . . 1 . . . Recycling Unit Hacks . | . . . . . . . Scanalyzer . | . . . . . . . Garrison Access Hacks . | . . . . . . . Unauthorized Hacks 32 | . 14 . 16 . . 2 Terminals 13 | . 6 . 6 . . 1 Track 4 | . 2 . 2 . . . Assimilate 1 | . 1 . . . . . Botnet 6 | . 2 . 4 . . . Disrupt 1 | . . . . . . 1 Operators 1 | . 1 . . . . . Fabricators . | . . . . . . . Repair Stations . | . . . . . . . Recycling Units . | . . . . . . . Scanalyzers . | . . . . . . . Garrison Access . | . . . . . . . Data Cores Recovered . | . . . . . . . Used . | . . . . . . . Hacking Detections 8 | . 3 . 5 . . . Full Trace Events 2 | . 1 . 1 . . . Feedback Events . | . . . . . . . Feedback Blocked . | . . . . . . . Robot Schematics Acquired . | . . . . . . . Robots Built . | . . . . . . . Matter . | . . . . . . . Time . | . . . . . . . Total Robot Build Rating . | . . . . . . . Part Schematics Acquired . | . . . . . . . Parts Built . | . . . . . . . Matter . | . . . . . . . Time . | . . . . . . . Total Part Build Rating . | . . . . . . . Parts Repaired . | . . . . . . . Time . | . . . . . . . Parts Recycled . | . . . . . . . Recycled Matter . | . . . . . . . Retrieved Matter . | . . . . . . . Retrieved Components . | . . . . . . . Parts Scanalyzed . | . . . . . . . Part Schematics Acquired . | . . . . . . . Parts Damaged . | . . . . . . . Bothacking | -11 -10 -10 -9 -9 -9 -8 ------------ Run | Scr Mat Min Mat Min Exi Min Used RIF Installer . | . . . . . . . Robots Hacked . | . . . . . . . Non-combat . | . . . . . . . Combat . | . . . . . . . Robot Hacks Applied . | . . . . . . . Relay Couplers Released . | . . . . . . . Robots Rewired . | . . . . . . . Allies Hacked . | . . . . . . . Hacks Repelled . | . . . . . . . Allies | -11 -10 -10 -9 -9 -9 -8 -------- Run | Scr Mat Min Mat Min Exi Min Total Allies 7 | . 1 2 . 4 . . Largest Group 4 | . 1 2 . 4 1 . Highest-Rated Group 71 | . 10 41 . 71 14 . Highest-Rated Ally 31 | . 10 31 . 31 14 . Total Orders . | . . . . . . . Ally Attacks 21 | . . 4 . 17 . . Total Damage 305 | . . 42 . 263 . . Kills 6 | . . . . 6 . . Allies Corrupted . | . . . . . . . Allies Melted . | . . . . . . . Intel | -11 -10 -10 -9 -9 -9 -8 ------- Run | Scr Mat Min Mat Min Exi Min Robot Analysis Total . | . . . . . . . Derelict Logs Recovered 4 | . . 2 . 2 . . Drone Launches . | . . . . . . . Drone Recoveries . | . . . . . . . Exploration | -11 -10 -10 -9 -9 -9 -8 ------------- Run | Scr Mat Min Mat Min Exi Min Turns Passed 4001 | 88 1274 820 731 654 187 247 Spaces Moved 2715 | 59 712 683 453 546 168 94 Core 7 | 7 . . . . . . Treads . | . . . . . . . Legs 19 | . . . . . . 19 Wheels 2687 | 52 712 683 453 546 168 73 Hover 2 | . . . . . . 2 Flight . | . . . . . . . Fastest Speed 50 | 50 80 110 96 96 110 100 Average Speed 106 | 76 108 110 105 98 110 137 Slowest Speed 236 | 80 130 110 110 110 110 236 Overloaded Moves . | . . . . . . . Propulsion Burnouts . | . . . . . . . Robots Hopped . | . . . . . . . Cave-ins Triggered . | . . . . . . . Exploration Rate (%) 56 | 4 88 97 38 89 53 26 Regions Visited 6 Branch Regions 4 Pre-discovered Areas 3 | . . 1 . 1 1 . Known Exits Taken . | . . . . . . . Unknown Exits Taken 6 | 1 1 1 1 1 1 . Scrap Searched 3 | . . 1 . 2 . . Spaces Dug 9 | . 9 . . . . . Terrain Destroyed 392 | . 121 30 126 . . 115 Melee . | . . . . . . . Projectile 4 | . . . . . . 4 AOE 388 | . 121 30 126 . . 111 Actions | -11 -10 -10 -9 -9 -9 -8 --------- Run | Scr Mat Min Mat Min Exi Min Total 3483 | 85 1126 732 594 619 170 157 Wait 414 | 2 305 24 49 34 . . Move 2709 | 58 711 682 452 545 167 94 Hop . | . . . . . . . Pick Up 61 | 10 19 4 10 9 3 6 Fast Attach . | . . . . . . . Attach 45 | 7 7 2 10 5 . 14 Detach . | . . . . . . . Swap 9 | . 4 . 3 2 . . Drop 9 | . 5 . 2 1 . 1 Fire 233 | 8 75 19 68 23 . 40 Melee 2 | . . . . . . 2 Ram 1 | . . 1 . . . . Kick . | . . . . . . . Crush . | . . . . . . . Escape Stasis . | . . . . . . . Rewire . | . . . . . . . Trap . | . . . . . . . Miscellaneous . | . . . . . . . Route ------- -11/Scrapyard -10/Materials (discovered 5 exits: *Mat x3 / [*Min x2]) -10/Mines (discovered 2 exits: *Mat x2) -9/Materials -9/Mines (discovered 3 exits: [*Mat x2] / *Exi) -9/Exiles -8/Mines History --------- Turn | Location | Event 13 | -11/Scrapyard | Discovered new exit (range 16) 89 | -11/Scrapyard | Entered Materials 272 | -10/Materials | Discovered new exit (range 12) 335 | -10/Materials | Build established: Mutant 375 | -10/Materials | Discovered new exit (range 7) 607 | -10/Materials | Discovered new exit (range 9) 925 | -10/Materials | Discovered new exit (range 8) 1261 | -10/Materials | Discovered new exit (range 12) 1300 | -10/Materials | Lost 4 parts (1p1n2w) 1363 | -10/Materials | Entered Mines 1384 | -10/Mines | Learned Materials trap positions 1794 | -10/Mines | Discovered new exit (range 6) 1797 | -10/Mines | Discovered new exit (range 10) 2125 | -10/Mines | Core integrity fell below 50% 2183 | -10/Mines | Entered Materials 2183 | -9/Materials | Evolved 2 slots: Propulsion x1, Utility x1 2184 | -9/Materials | Loaded intel: 28 trap records 2807 | -9/Materials | Discovered new exit (range 11) 2914 | -9/Materials | Entered Mines 2958 | -9/Mines | Discovered new exit (range 9) 3026 | -9/Mines | Learned Materials stockpile data 3098 | -9/Mines | Lost 4 parts (1p1n1u1w) 3113 | -9/Mines | Assisted by bots powering up and referring to "LRC-V3" 3124 | -9/Mines | Learned Materials stockpile data 3202 | -9/Mines | Received a Rocket Launcher from a helpful Derelict 3240 | -9/Mines | Escorted by a lone wolf Derelict 3263 | -9/Mines | Learned location of Storage (-7) 3534 | -9/Mines | Discovered new exit (range 15) 3546 | -9/Mines | Deemed a non-threat by the Exiles lab entrance 3546 | -9/Mines | Discovered new exit (range 5) 3568 | -9/Mines | Entered Exiles 3568 | -9/Exiles | Accompanied by 1 ally 3600 | -9/Exiles | Met 8R-AWN 3618 | -9/Exiles | Met EX-HEX 3674 | -9/Exiles | Met EX-DEC 3701 | -9/Exiles | Learned location of Zion (-6) 3738 | -9/Exiles | Discovered new exit (range 14) 3755 | -9/Exiles | Entered Mines 3755 | -8/Mines | Accompanied by 1 ally 3801 | -8/Mines | Lost 5 parts (1p1u3w) 3899 | -8/Mines | Core integrity fell below 50% 3930 | -8/Mines | Destroyed 7 combat bots 3988 | -8/Mines | Core integrity fell below 20% 4002 | -8/Mines | Destroyed by S-10 Pest with Light Assault Rifle Last Messages --------------- 03972_ Slug penetrates S-10 Pest. 03973_ R-06 Scavenger collects Flight Unit. 03974_ Lgt. Ion Engine destroyed. 03975_ Lgt. Assault Rifle destroyed. 03977_ Slug penetrates S-10 Pest. 03977_ R-06 Scavenger collects Flight Unit. 03979_ Gauss Rifle destroyed. 03979_ K-01 Serf collects debris. 03980_ Acquired Lgt. Ion Engine. 03982_ K-01 Serf collects debris. 03988_ S-10 Pest suffers critical hit. 03989_ K-01 Serf collects debris. 03989_ Lgt. Assault Rifle destroyed. 03992_ K-01 Serf collects debris. 03993_ Acquired 19 matter. 03995_ K-01 Serf collects debris. 03998_ S-10 Pest destroyed. 03998_ K-01 Serf collects debris. 03999_ Acquired 17 matter. 04000_ Imp. Hover Unit destroyed. Map ----- +----------------------------------------------------+ | | | | | | | | | | | | | | | | | | | | | | | | | | | | | | | | | ??????????????????????????????????????????????? | | ??????????????????????????????????????????????? | | ??????????????????????????????????????????????? | | ??????????????????????????????????????????????? | | ??????????????????????????????????????????????? | | ?????????????##########???????????????????????? | | ?????????????# s * ##??####????????????????? | | ?????????????# =s[ T### #####????????????? | | ?????????????# ""% ### #????????????? | | ?????????????# "%=[@ #???????????? | | ?????????????# = *ssk """ ????????? | | ?????????????# = ## """ ???????????????? | | ?????????????#### %###? """ ???????????????? | | ???????????????# #?# ???????????????? | | ???????????????# = #?# #### ??????????????? | | ???????????????# #" "#### #???? ###??????????? | | ???????????????###" #### ##?????????? | | ?????????????????#""""### #?????????? | | ?????????????????######?# #?????????? | | ??????????????#####?????## ###### #????????? | | ??????????????# ##?###?# #???????? #???????? | | ??????????????# ### ### ##?????????????????? | | ???????????????# # #?????????????????? | | ??????????????## # = [ #?????????????????? | | ?????????????## !* = #?????????????????? | | ?????????????# = # #?????????????????? | | ?????????????# # ####?????????????????? | | ?????????????# ## ###???????????????????? | | ?????????????# ########?????????????????????? | | ????????????## ##?????????###???????????????? | | ???????????## ##??????? ???????????????? | | ???????????# #?????? # ??????????????? | | ???????????# #????## ##????????????? | | ???????????# #???# ##???????????? | +----------------------------------------------------+ Best States ------------- Heat Dissipation 28 Energy Generation 12 Energy Capacity 265 Matter Stores 300 Matter Capacity 300 Sight Range 16 Terrain Scan Density 10 Armor Coverage 150 Evasion (%) 44 Item Schematics ----------------- None Robot Schematics ------------------ None Fabricated ------------ Nothing Alien Tech Used ----------------- None Achievements -------------- None Challenges ------------ None Game ------ Seed DisruptorImpulseCleaver Manual? 0 Play Time 00:30:42 Cumulative 277.8 hours Start 2019.12.20 @ 20:20:52 End 2019.12.20 @ 20:54:31 Sessions 1 Manual Loads 0 Difficulty Rogue Special Mode None Game No. 319 Rogue 319 Adventurer 0 Explorer 0 Win Type - Total 3 Types 1/1/0/1/0/0/0 Lore% 65 Gallery% 83 Achievement% 63 Wizard Run 0 Options --------- ASCII 0 Keyboard 0 Movement Numpad Keybinds 0 Fullscreen 1 Font 16/Terminus Map View 75x55 Tactical HUD 1 Map Filters NONE Filters NONE Steam 1 RUN: 4e836bd4-e04c-4563-bf79-50f20a69ca75